bitfinex-derivatives/quotes_ETHF0:USTF0_20250503
["timestamp","ask_amount","ask_price","bid_price","bid_amount"]
[1746292411467,1.09985,1818.0,1817.6,8.66216]
[1746292411869,0.34594697,1817.9,1817.6,2.75016]
[1746292412168,1.09985,1818.0,1817.9,1.09989]
[1746292412361,1.4457972,1818.0,1817.9,1.09989]
[1746292413067,1.72090036,1818.0,1817.9,1.09989]
[1746292413268,5.43890036,1818.0,1817.9,1.09989]
[1746292413467,0.27510316,1817.9,1817.4,11.87026]
[1746292413768,1.44590008,1817.8,1817.7,1.09999]
[1746292413969,0.62101324,1817.8,1817.7,1.09999]
[1746292414172,4.33901324,1817.8,1817.7,1.09999]
[1746292414671,3.718,1817.8,1817.7,1.09999]
[1746292414970,3.99310316,1817.8,1817.7,1.09999]
[1746292415474,3.718,1817.8,1817.7,1.09999]
[1746292416167,4.74990316,1817.9,1817.5,11.32052]
[1746292416168,3.2078,1817.9,1817.8,1.09995]
[1746292416570,3.48290316,1817.9,1817.8,1.09995]
[1746292417269,3.2078,1817.9,1817.8,1.09995]
[1746292417669,5.58152315,1818.1,1818.0,1.09983]
[1746292417863,5.92776723,1818.1,1818.0,5.40083]
[1746292418370,5.30641999,1818.1,1818.0,5.40083]
[1746292419567,5.65272231,1818.1,1818.0,5.40083]
[1746292419773,0.62140548,1818.1,1818.0,5.40083]
[1746292420070,4.33940548,1818.1,1818.0,5.40083]
[1746292421671,4.33948335,1818.1,1818.0,5.40083]
[1746292423367,3.99310316,1818.1,1818.0,5.40083]
[1746292423573,4.33979537,1818.1,1818.0,5.40083]
[1746292425272,6.0122595,1818.1,1818.0,5.40083]
[1746292428677,2.22635,1818.1,1818.0,16.31283]
[1746292429069,1.6539,1818.3,1818.2,1.09971]
[1746292430177,1.6539,1818.3,1818.2,4.81771]
[1746292432279,1.6539,1818.3,1818.2,5.87761]
[1746292435077,0.27510316,1818.6,1818.5,1.09953]
[1746292435280,1.93330316,1818.6,1818.5,5.30753]
[1746292436281,1.6582,1818.6,1818.5,9.02553]
[1746292436582,1.93330316,1818.6,1818.5,9.02553]
[1746292441381,3.11670316,1818.6,1818.5,4.81753]
[1746292442186,3.11670316,1818.6,1818.5,1.09953]
[1746292447387,3.46290941,1818.6,1818.4,5.30757]
[1746292447589,1.1966,1818.5,1818.4,5.30757]
[1746292447784,2.8635,1818.5,1818.4,5.30757]
[1746292448182,3.20970438,1818.5,1818.4,5.30757]
[1746292448485,2.8635,1818.5,1818.4,5.30757]
[1746292449090,2.8635,1818.5,1818.4,9.02557]
[1746292449487,3.20973483,1818.5,1818.4,9.02557]
[1746292449682,2.8635,1818.5,1818.4,9.02557]
[1746292449889,3.20974847,1818.5,1818.4,9.02557]
[1746292450086,2.8635,1818.5,1818.4,9.02557]
[1746292450285,3.20979717,1818.5,1818.4,9.02557]
[1746292450486,2.8635,1818.5,1818.4,9.02557]
[1746292451191,7.79225049,1818.5,1818.4,7.926]
[1746292451390,7.79227088,1818.5,1818.4,3.71939548]
[1746292451593,7.79227088,1818.5,1818.4,3.718]
[1746292451785,12.79224703,1818.5,1818.4,3.718]
[1746292451986,12.79224747,1818.5,1818.4,3.718]
[1746292452184,7.79223715,1818.5,1818.4,1.09959]
[1746292452391,12.79228695,1818.5,1818.4,1.09959]
[1746292452691,1.09961,1818.4,1818.3,1.0996]
[1746292452888,3.14935578,1818.4,1818.3,1.0996]
[1746292453688,3.14936652,1818.4,1818.3,1.0996]
[1746292454385,3.14934652,1818.4,1818.3,1.0996]
[1746292454885,2.04975652,1818.4,1818.3,1.0996]
[1746292455492,3.14950462,1818.4,1818.3,1.0996]
[1746292455691,2.04991462,1818.4,1818.3,1.0996]
[1746292455995,0.27510316,1818.3,1818.2,5.25066]
[1746292456184,0.27510316,1818.3,1818.2,8.96866]
[1746292456185,2.35931778,1818.3,1818.2,8.96866]
[1746292457195,2.35933819,1818.3,1818.2,5.25066]
[1746292458791,2.35950959,1818.3,1818.2,5.25066]
[1746292460504,3.45911084,1818.3,1818.2,5.25066]
[1746292460697,2.35946084,1818.3,1818.2,5.25066]
[1746292461397,3.45911084,1818.3,1818.2,5.25066]
[1746292462301,3.45906375,1818.3,1818.2,5.25066]
[1746292462694,5.56721375,1818.3,1818.2,5.25066]
[1746292462998,2.35941375,1818.3,1818.2,5.25066]
[1746292463998,2.35940743,1818.3,1818.2,5.25066]
[1746292464393,3.45905743,1818.3,1818.2,5.25066]
[1746292464699,2.08430427,1818.3,1818.2,5.25066]
[1746292464903,2.08430427,1818.3,1818.2,4.151]
[1746292465201,2.08430427,1818.3,1818.2,7.869]
[1746292465901,2.08430179,1818.3,1818.2,7.869]
[1746292467205,2.08430179,1818.3,1818.2,4.151]
[1746292467510,2.08438312,1818.3,1818.2,4.151]
[1746292468005,3.18403312,1818.3,1818.2,5.25071]
[1746292468205,3.18403312,1818.3,1818.2,8.96871]
[1746292468703,2.08438312,1818.3,1818.2,8.96871]
[1746292468905,3.18403312,1818.3,1818.2,8.96871]
[1746292469099,3.18403312,1818.3,1818.2,5.25071]
[1746292469304,2.0845436,1818.3,1818.2,5.25071]
[1746292470095,3.2078,1818.5,1818.4,1.09959]
[1746292470300,5.27169174,1818.5,1818.4,1.09959]
[1746292471003,3.55469174,1818.5,1818.4,1.09959]
[1746292471199,3.55472402,1818.5,1818.4,5.87699]
[1746292471407,6.37125402,1818.5,1818.4,4.81759]
[1746292472098,6.64635718,1818.5,1818.4,3.718]
[1746292472299,7.90515718,1818.5,1818.4,3.718]
[1746292472703,7.55823316,1818.5,1818.4,3.718]
[1746292473005,7.90512413,1818.5,1818.4,3.718]
[1746292473204,1.09965,1818.3,1818.2,5.25171]
[1746292473404,4.65434097,1818.3,1818.2,5.25171]
[1746292474209,4.65434097,1818.3,1818.2,8.96971]
[1746292474506,6.32022302,1818.3,1818.2,8.96971]
[1746292474903,6.59532618,1818.3,1818.2,8.96971]
[1746292476410,6.59533628,1818.3,1818.2,8.96971]
[1746292476600,6.59533628,1818.3,1818.2,3.718]
[1746292476805,1.09975,1818.2,1818.1,1.09975]
[1746292477007,3.46983628,1818.2,1818.1,1.09975]
[1746292477204,2.37008628,1818.2,1818.1,1.09975]
[1746292477708,1.09979,1818.1,1818.0,1.0998]
[1746292477909,2.09498312,1818.1,1818.0,1.0998]
[1746292478113,0.34688312,1818.1,1818.0,1.0998]
[1746292478318,0.34688312,1818.1,1818.0,2.1592]
[1746292478612,1.7481,1818.2,1818.1,1.09977]
[1746292478912,2.09496011,1818.2,1818.1,1.09977]
[1746292479116,2.09496011,1818.2,1818.1,5.25177]
[1746292479711,2.09501327,1818.2,1818.1,5.25177]
[1746292479908,0.34691327,1818.2,1818.1,5.25177]
[1746292480111,8.65802937,1818.4,1818.3,1.09965]
[1746292480407,7.07402937,1818.4,1818.3,5.25165]
[1746292480913,7.07402937,1818.4,1818.3,6.41505]
[1746292481107,7.4210016,1818.4,1818.3,10.13305]
[1746292481507,7.42101036,1818.4,1818.3,10.13305]
[1746292482108,7.07402937,1818.4,1818.3,10.13305]
[1746292482607,7.07402937,1818.4,1818.3,15.13305]
[1746292483017,1.584,1818.6,1818.5,1.09953]
[1746292483208,1.93086838,1818.6,1818.5,1.09953]
[1746292483713,1.584,1818.6,1818.5,1.09953]
[1746292483901,1.93087365,1818.6,1818.5,1.09953]
[1746292484107,1.584,1818.6,1818.5,4.81753]
[1746292486015,3.48290316,1818.7,1818.6,1.09947]
[1746292486214,5.56232895,1818.7,1818.6,1.09947]
[1746292487210,5.21570316,1818.7,1818.6,1.09947]
[1746292492414,1.7328,1818.7,1818.6,1.09947]
[1746292493115,0.27510316,1818.9,1818.8,1.09935]
[1746292493317,0.62141516,1818.9,1818.8,5.24235]
[1746292493520,0.27510316,1818.9,1818.8,5.24235]
[1746292494513,1.5905,1818.9,1818.8,5.24235]
[1746292495113,1.5905,1818.9,1818.8,8.96035]
[1746292496215,1.5905,1818.9,1818.8,11.19405]
[1746292497317,0.27510316,1819.0,1818.9,1.09929]
[1746292497727,0.27510316,1819.0,1818.9,2.15769]
[1746292498022,0.27510316,1819.0,1818.9,1.09929]
[1746292498218,0.27510316,1819.0,1818.9,4.81729]
[1746292501522,0.27510316,1819.0,1818.9,8.96029]
[1746292502123,0.27510316,1819.0,1818.9,5.24229]
[1746292502618,1.37433316,1819.0,1818.9,5.24229]
[1746292502823,1.91520316,1819.0,1818.9,5.24229]
[1746292503024,8.01443316,1819.0,1818.9,1.09929]
[1746292503220,1.37439316,1818.9,1818.8,10.054]
[1746292503417,4.25619316,1818.9,1818.8,5.24135]
[1746292503621,1.09935,1818.8,1818.6,1.09944]
[1746292503825,6.0122,1818.8,1818.7,1.09941]
[1746292504123,2.8044,1818.8,1818.7,1.09941]
[1746292506721,2.8094802,1818.8,1818.7,1.09941]
[1746292508127,3.15592435,1818.8,1818.7,1.09941]
[1746292509124,3.15594584,1818.8,1818.7,1.09941]
[1746292509329,4.25529584,1818.8,1818.7,1.09941]
[1746292509624,4.25545674,1818.8,1818.7,1.09941]
[1746292509829,4.25545729,1818.8,1818.7,1.09941]
[1746292510027,0.27510316,1818.7,1818.6,1.09944]
[1746292510224,2.33493025,1818.7,1818.6,1.09944]
[1746292510932,1.09947,1818.6,1818.5,4.142]
[1746292511230,6.36709709,1818.6,1818.5,4.142]
[1746292511430,1.09953,1818.5,1818.4,1.09955]
[1746292511730,3.23854666,1818.5,1818.4,1.09955]
[1746292512426,2.8919,1818.5,1818.4,1.09955]
[1746292512731,4.33811104,1818.5,1818.4,1.09955]
[1746292513031,3.23858104,1818.5,1818.4,1.09955]
[1746292513431,4.33805144,1818.5,1818.4,1.09955]
[1746292514332,1.09961,1818.4,1818.3,1.09962]
[1746292514532,4.44393144,1818.4,1818.3,1.09962]
[1746292515120,4.09731,1818.4,1818.3,1.09962]
[1746292515533,4.44380991,1818.4,1818.3,1.09965]
[1746292516227,3.34416991,1818.4,1818.3,1.09965]
[1746292516732,3.344074,1818.4,1818.3,1.09965]
[1746292517133,4.443664,1818.4,1818.3,1.09965]
[1746292517730,6.82697716,1818.4,1818.1,1.09974]
[1746292517938,1.09974,1818.2,1818.1,1.09975]
[1746292518129,2.7682,1818.3,1818.2,1.09971]
[1746292518328,3.1143066,1818.3,1818.2,1.09971]
[1746292518633,3.11430338,1818.3,1818.2,1.09971]
[1746292519035,0.27510316,1818.2,1818.1,1.09972]
[1746292519226,5.58770654,1818.2,1818.1,3.02472]
[1746292519431,5.24160316,1818.2,1818.1,3.02472]
[1746292519830,5.24160316,1818.2,1818.1,1.09972]
[1746292520138,8.95960316,1818.2,1818.1,1.09972]
[1746292521839,5.75180316,1818.2,1818.1,1.09972]
[1746292522238,2.03380316,1818.2,1818.1,1.09972]
[1746292523133,2.03380316,1818.2,1818.0,1.9251]
[1746292523334,1.1788,1818.1,1818.0,3.02489]
[1746292523736,2.8933,1818.1,1818.0,1.09979]
[1746292525342,1.7145,1818.1,1818.0,6.09979]
[1746292525539,4.8988,1818.3,1818.2,1.09971]
[1746292525740,5.99845,1818.3,1818.2,1.09971]
[1746292526040,5.99845,1818.3,1818.1,2.35432]
[1746292526235,1.691,1818.2,1818.1,2.35432]
[1746292526440,3.06586316,1818.2,1818.0,1.09978]
[1746292526638,1.2166,1818.1,1818.0,1.09978]
[1746292526839,2.9076,1818.1,1818.0,1.09978]
[1746292528846,3.18270316,1818.1,1817.9,13.0288]
[1746292529037,1.7266,1818.0,1817.9,13.06809]
[1746292529438,1.7266,1818.0,1817.9,11.14289]
[1746292533042,3.10153316,1818.0,1817.9,10.043]
[1746292533243,1.37499316,1817.9,1817.8,1.9254]
[1746292533547,1.37499316,1817.9,1817.6,5.912]
[1746292533548,1.37511316,1817.7,1817.6,5.912]
[1746292533747,1.7210905,1817.7,1817.6,5.912]
[1746292533951,1.72101796,1817.7,1817.6,7.01207]
[1746292534254,1.6002,1817.8,1817.7,1.10001]
[1746292535151,5.3182,1817.8,1817.7,1.10001]
[1746292535556,6.41815,1817.8,1817.7,1.10001]
[1746292535848,6.69325316,1817.8,1817.7,1.10001]
[1746292537243,2.97525316,1817.8,1817.7,1.10001]
[1746292537440,1.6002,1817.8,1817.7,1.10001]
[1746292537644,2.97525316,1817.8,1817.7,1.10001]
[1746292537842,1.37511316,1817.7,1817.6,5.912]
[1746292538043,4.41731316,1817.7,1817.6,7.01207]
[1746292538648,4.41731316,1817.7,1817.6,1.10007]
[1746292538947,3.31730316,1817.7,1817.6,1.10007]
[1746292539255,3.31730316,1817.7,1817.5,2.37119]
[1746292539440,3.12427316,1817.6,1817.5,1.2711]
[1746292539843,1.10013,1817.5,1817.4,5.23215]
[1746292540143,6.56723,1817.5,1817.4,5.23215]
[1746292540546,1.10019,1817.4,1817.3,1.2714]
[1746292540850,2.9807,1817.4,1817.3,2.37165]
[1746292541048,2.9807,1817.4,1817.3,1.10025]
[1746292541347,7.79889,1817.4,1817.3,1.10025]
[1746292541852,7.79895,1817.4,1817.2,2.37177]
[1746292542051,1.6767,1817.3,1817.2,2.37177]
[1746292542453,1.6767,1817.3,1817.2,1.10027]
[1746292542650,11.36210316,1817.3,1816.5,8.66381]
[1746292542954,4.30832,1816.9,1816.7,1.10058]
[1746292543155,1.2025,1816.8,1816.7,1.10058]
[1746292543455,2.7925,1816.8,1816.7,1.10058]
[1746292548955,3.06760316,1816.8,1816.7,1.10058]
[1746292549152,3.06760316,1816.8,1816.5,1.272]
[1746292549353,0.27510316,1816.6,1816.5,2.3727]
[1746292549663,1.37578316,1816.6,1816.4,1.10076]
[1746292549852,4.11394,1816.5,1816.4,1.10076]
[1746292550052,3.0132,1816.5,1816.4,1.10076]
[1746292550862,1.726,1816.5,1816.4,1.10076]
[1746292552961,4.58356316,1816.7,1816.6,1.10068]
[1746292553154,4.58356316,1816.7,1816.3,5.08803]
[1746292553155,1.10068,1816.6,1816.5,1.1007]
[1746292553556,1.10068,1816.6,1816.5,1.10069]
[1746292554254,1.37585316,1816.5,1816.4,1.10075]
[1746292554454,2.68035316,1816.5,1816.4,1.10075]
[1746292555162,9.60615316,1816.5,1816.4,1.10075]
[1746292555657,1.1008,1816.4,1816.3,2.37301]
[1746292555861,4.0676,1816.4,1816.3,2.37301]
[1746292556057,4.0676,1816.4,1816.3,1.10081]
[1746292556457,2.9668,1816.4,1816.2,1.2724]
[1746292556657,2.33173,1816.4,1816.3,1.10086]
[1746292560471,2.33173,1816.4,1816.2,1.2724]
[1746292560681,2.33173,1816.4,1816.3,1.10086]
[1746292560973,5.53953,1816.4,1816.3,1.10086]
[1746292561484,4.71380316,1816.4,1816.2,2.37328]
[1746292561773,1.10086,1816.3,1816.2,1.2724]
[1746292562276,1.10092,1816.2,1816.1,1.10096]
[1746292562967,3.99310316,1816.3,1816.2,1.10092]
[1746292563169,1.10094,1816.2,1816.1,1.10093]
[1746292563475,5.09400316,1816.3,1816.2,1.10092]
[1746292563668,3.718,1816.3,1816.2,1.10092]
[1746292564073,4.4387,1816.4,1816.3,1.10086]
[1746292564272,3.2078,1816.4,1816.3,1.10086]
[1746292564467,2.57916316,1816.7,1816.6,1.10068]
[1746292564672,1.10069,1816.6,1816.5,1.1007]
[1746292564975,5.51185,1816.7,1816.6,1.10068]
[1746292565176,1.1007,1816.6,1816.5,1.1007]
[1746292565574,7.43789316,1816.7,1816.2,7.3278]
[1746292565877,1.10078,1816.5,1816.4,1.10079]
[1746292566278,1.10086,1816.3,1816.2,4.3087]
[1746292566469,4.30866,1816.3,1816.2,1.1009]
[1746292566676,1.10086,1816.3,1816.2,1.1009]
[1746292566979,4.30866,1816.3,1816.2,1.1009]
[1746292567375,4.30866,1816.3,1816.0,14.05714]
[1746292567376,1.37608316,1816.1,1816.0,5.3926]
[1746292567571,4.58388316,1816.1,1816.0,5.3926]
[1746292567874,4.95080111,1816.1,1816.0,5.22104]
[1746292568075,8.66880111,1816.1,1816.0,5.22104]
[1746292568277,7.56782111,1816.1,1816.0,5.22104]
[1746292568579,6.9258,1816.1,1816.0,5.22104]
[1746292568875,3.718,1816.1,1816.0,5.22104]
[1746292569177,2.35828,1816.1,1816.0,5.22104]
[1746292569376,2.72553593,1816.1,1816.0,4.12]
[1746292569580,2.72553593,1816.1,1816.0,5.22104]
[1746292569774,1.62455593,1816.1,1816.0,5.22104]
[1746292569974,3.48290316,1816.3,1816.1,1.10098]
[1746292570278,0.36725305,1816.2,1816.1,1.10098]
[1746292570582,2.69922316,1816.4,1816.3,1.10086]
[1746292570773,3.06677398,1816.4,1816.3,1.10086]
[1746292570974,1.96595398,1816.4,1816.1,1.0639]
[1746292571274,1.10097,1816.2,1816.1,1.10097]
[1746292571472,1.10098,1816.1,1816.0,1.10101]
[1746292571774,1.10104,1816.0,1815.9,6.49487]
[1746292571966,2.68554272,1816.0,1815.9,6.49487]
[1746292572168,1.58450272,1816.0,1815.9,5.22207]
[1746292572378,1.58474699,1816.0,1815.9,5.22207]
[1746292574078,5.30274699,1816.0,1815.9,5.22207]
[1746292574276,6.40378699,1816.0,1815.9,4.121]
[1746292574473,5.30274699,1816.0,1815.9,5.2221]
[1746292575079,1.58474699,1816.0,1815.9,5.2221]
[1746292575280,3.22764699,1816.0,1815.9,5.2221]
[1746292575778,4.43544699,1816.0,1815.9,5.2221]
[1746292575967,4.43543797,1816.0,1815.9,5.2221]
[1746292577073,2.01083797,1816.0,1815.9,5.2221]
[1746292577278,1.50510316,1816.3,1816.1,1.10094]
[1746292577480,3.14276294,1816.2,1816.1,1.10098]
[1746292577666,4.4120451,1816.2,1816.1,1.10098]
[1746292578077,8.1300451,1816.2,1816.1,1.10098]
[1746292578582,7.0291251,1816.2,1816.1,1.10098]
[1746292579383,3.3111251,1816.2,1816.1,1.10098]
[1746292580678,2.0418251,1816.2,1816.1,1.10098]
[1746292581177,3.1427451,1816.2,1816.1,1.10098]
[1746292581376,4.4000451,1816.2,1816.1,1.10098]
[1746292583082,3.2991251,1816.2,1816.1,1.10098]
[1746292583477,2.0418251,1816.2,1816.1,1.10098]
[1746292584478,0.3681251,1816.2,1816.1,2.16418]
[1746292584675,2.0400251,1816.2,1816.1,2.16418]
[1746292584875,3.1409451,1816.2,1816.1,2.16418]
[1746292585175,2.0400251,1816.2,1816.1,1.10098]
[1746292586081,2.68125316,1816.4,1816.1,1.10098]
[1746292586082,1.7495,1816.4,1816.1,6.0632]
[1746292586281,3.88160184,1816.6,1816.5,1.10074]
[1746292586586,1.10074,1816.5,1816.4,1.10075]
[1746292586777,3.21921684,1816.5,1816.4,1.10075]
[1746292587082,2.11847684,1816.5,1816.4,1.10075]
[1746292587283,0.36897684,1816.5,1816.4,2.16395]
[1746292587582,5.63110184,1816.6,1816.5,1.10074]
[1746292587786,5.35091753,1816.6,1816.5,1.10074]
[1746292588083,5.35090708,1816.6,1816.5,1.10074]
[1746292588276,1.10074,1816.5,1816.4,1.0632]
[1746292588483,0.36862524,1816.5,1816.4,2.164]
[1746292588678,1.46936524,1816.5,1816.4,1.1008]
[1746292589077,0.36862524,1816.5,1816.4,1.1008]
[1746292589382,3.88160184,1816.6,1816.5,1.10074]
[1746292589571,3.97498904,1816.6,1816.5,1.10074]
[1746292589775,5.3507722,1816.6,1816.5,1.10074]
[1746292590385,1.10074,1816.5,1816.4,1.10075]
[1746292590580,1.46923036,1816.5,1816.4,1.10075]
[1746292591387,1.46917993,1816.5,1816.4,1.10075]
[1746292591885,1.1008,1816.4,1816.3,7.30351]
[1746292592078,2.79083993,1816.4,1816.3,7.30351]
[1746292592380,6.27374309,1816.4,1816.3,0.8258]
[1746292593083,6.27364107,1816.4,1816.3,0.8258]
[1746292593283,9.99164107,1816.4,1816.3,0.8258]
[1746292594786,9.9916537,1816.4,1816.3,0.8258]
[1746292595389,13.59815238,1816.4,1816.3,0.8258]
[1746292595685,12.22224922,1816.4,1816.3,1.92666]
[1746292595888,10.90064922,1816.4,1816.3,1.92666]
[1746292596188,7.18264922,1816.4,1816.3,1.92666]
[1746292596486,7.18276926,1816.4,1816.3,1.92666]
[1746292596687,7.18276926,1816.4,1816.3,3.16046]
[1746292596990,3.97496926,1816.4,1816.3,3.16046]
[1746292597284,3.60649868,1816.4,1816.3,3.16046]
[1746292598377,3.60649868,1816.4,1816.3,4.22216]
[1746292598782,3.60649868,1816.4,1816.3,8.32516]
[1746292598984,4.98229184,1816.6,1816.5,1.10074]
[1746292599287,5.35063062,1816.6,1816.5,1.10074]
[1746292599783,5.35063062,1816.6,1816.3,7.2243]
[1746292599980,0.36834177,1816.5,1816.4,1.1008]
[1746292600682,3.60649868,1816.6,1816.5,1.10074]
[1746292600876,3.97481326,1816.6,1816.5,1.10074]
[1746292601588,3.97476797,1816.6,1816.5,1.10074]
[1746292602693,0.36826929,1816.6,1816.5,1.10074]
[1746292603391,7.05094316,1816.7,1816.6,1.10068]
[1746292603689,7.41918245,1816.7,1816.6,1.10068]
[1746292604188,1.10068,1816.6,1816.5,1.92641]
[1746292604384,1.46891929,1816.6,1816.5,0.8257]
[1746292604782,1.74402245,1816.6,1816.5,1.92644]
[1746292604990,0.64334245,1816.6,1816.5,1.92644]
[1746292605190,2.38324245,1816.6,1816.5,1.92644]
[1746292605489,2.10813929,1816.6,1816.5,1.92644]
[1746292605691,3.88160184,1816.8,1816.5,5.8257]
[1746292605891,0.36834946,1816.7,1816.6,1.10068]
[1746292606087,2.10824833,1816.7,1816.6,1.10068]
[1746292606392,2.10825062,1816.7,1816.6,1.10068]
[1746292606584,2.38335378,1816.7,1816.6,1.10068]
[1746292606785,3.48396278,1816.7,1816.5,0.8257]
[1746292606991,3.3430287,1816.6,1816.5,1.92644]
[1746292607191,4.6029287,1816.6,1816.5,1.92644]
[1746292607790,5.61038316,1816.6,1816.5,0.8257]
[1746292608087,5.97870093,1816.6,1816.5,0.8257]
[1746292608490,5.97869812,1816.6,1816.5,1.92644]
[1746292609595,4.87801812,1816.6,1816.5,1.92644]
[1746292610091,4.87806561,1816.6,1816.5,1.92644]
[1746292611793,5.97874561,1816.6,1816.5,1.92644]
[1746292612385,10.97874561,1816.6,1816.5,0.8257]
[1746292613196,14.69674561,1816.6,1816.5,0.8257]
[1746292613696,9.69674561,1816.6,1816.5,0.8257]
[1746292614299,14.69674561,1816.6,1816.5,0.8257]
[1746292614791,1.10086,1816.3,1816.2,4.085]
[1746292614986,4.67702245,1816.3,1816.2,4.085]
[1746292615199,4.67702245,1816.3,1815.7,5.912]
[1746292615200,0.27510316,1816.2,1815.7,5.912]
[1746292615394,3.48290316,1815.9,1815.6,58.0649]
[1746292615594,4.5698059,1815.8,1815.7,1.10116]
[1746292615794,1.10128,1815.6,1815.5,10.986287]
[1746292616094,1.74498906,1815.6,1815.5,12.087627]
[1746292616294,1.74498906,1815.6,1815.5,1.10134]
[1746292616499,3.45980185,1815.6,1815.5,1.10134]
[1746292616800,1.99030316,1815.6,1815.5,1.10134]
[1746292617197,2.35849877,1815.6,1815.5,4.81934]
[1746292617403,2.08307562,1815.6,1815.5,4.81934]
[1746292617705,1.7152,1815.6,1815.5,4.81934]
[1746292618101,1.7152,1815.6,1815.5,5.88094]
[1746292620601,3.09158316,1815.6,1815.5,3.718]
[1746292620805,3.45909766,1815.6,1815.5,3.718]
[1746292621208,3.45909766,1815.6,1815.3,5.18742]
[1746292621401,3.3748145,1815.5,1815.3,5.18742]
[1746292621603,4.15611,1815.4,1815.3,4.086]
[1746292621814,0.27510316,1815.2,1815.1,1.10159]
[1746292622004,5.19810316,1815.3,1815.2,1.10153]
[1746292622305,1.7152,1815.3,1815.2,1.10153]
[1746292623108,1.7152,1815.3,1815.2,4.81953]
[1746292623307,1.7152,1815.3,1815.2,5.88253]
[1746292623610,1.2498,1815.7,1815.6,1.10128]
[1746292623798,2.8357,1815.7,1815.6,1.10128]
[1746292624707,2.8357,1815.7,1815.5,8.867]
[1746292624708,1.37638316,1815.6,1815.5,3.718]
[1746292624904,3.32910185,1815.6,1815.5,3.718]
[1746292625104,3.32910785,1815.6,1815.3,5.18744]
[1746292625307,3.98437,1815.5,1815.3,4.086]
[1746292625617,1.7293,1815.4,1815.3,5.18747]
[1746292625909,2.9873,1815.4,1815.3,5.18747]
[1746292627003,3.26240316,1815.4,1815.3,5.18747]
[1746292627203,3.26240316,1815.4,1815.3,8.90547]
[1746292627405,2.00440316,1815.4,1815.3,8.90547]
[1746292627608,0.27510316,1815.6,1815.5,1.10134]
[1746292627809,1.7293,1815.6,1815.5,1.10134]
[1746292628013,7.08895208,1815.9,1815.8,1.10116]
[1746292628198,5.33534892,1815.9,1815.8,1.10116]
[1746292628599,3.60604892,1815.9,1815.8,1.10116]
[1746292628805,3.60604892,1815.9,1815.8,9.50806]
[1746292629006,0.27510316,1816.0,1815.9,1.1011]
[1746292629205,0.27510316,1816.0,1815.9,5.8821]
[1746292629413,2.01850316,1816.0,1815.9,5.8821]
[1746292629613,2.01850316,1816.0,1815.9,4.8191]
[1746292629808,1.7434,1816.0,1815.9,4.8191]
[1746292630009,1.7434,1816.0,1815.9,5.8821]
[1746292630207,2.01850316,1816.0,1815.9,2.1641]
[1746292630407,2.01850316,1816.0,1815.9,1.1011]
[1746292630913,1.7434,1816.0,1815.9,1.1011]
[1746292631114,1.7434,1816.0,1815.9,4.8191]
[1746292631314,1.7434,1816.0,1815.9,5.8821]
[1746292631616,3.60604892,1816.1,1816.0,1.10104]
[1746292631815,3.60604892,1816.1,1816.0,7.16354]
[1746292632016,7.07402937,1816.4,1816.1,1.10098]
[1746292632316,7.07402937,1816.4,1816.3,1.10086]
[1746292632808,8.76132937,1816.4,1816.3,1.10086]
[1746292633009,1.6873,1816.4,1816.3,1.10086]
[1746292633509,1.96240316,1816.4,1816.3,5.18686]
[1746292633815,1.96240316,1816.4,1816.3,1.10086]
[1746292635115,5.68040316,1816.4,1816.3,1.10086]
[1746292636116,1.96240316,1816.4,1816.3,1.10086]
[1746292636710,1.6873,1816.4,1816.3,1.10086]
[1746292637921,1.96240316,1816.4,1816.3,1.10086]
[1746292638717,3.06324316,1816.4,1816.2,5.18687]
[1746292638919,1.96240316,1816.4,1816.3,1.10086]
[1746292639619,1.6873,1816.4,1816.3,1.10086]
[1746292640014,1.96240316,1816.4,1816.3,1.10086]
[1746292640415,1.96240316,1816.4,1816.2,5.16787]
[1746292640616,3.06325316,1816.4,1816.2,4.067]
[1746292640818,1.96240316,1816.4,1816.3,1.10086]
[1746292641426,3.06320316,1816.4,1816.3,1.10086]
[1746292642011,0.27510316,1816.3,1816.0,4.6082]
[1746292642215,1.37608316,1816.1,1816.0,5.70923]
[1746292642514,4.58388316,1816.1,1816.0,0.5412]
[1746292642714,4.9510255,1816.1,1816.0,0.5412]
[1746292642919,11.6155255,1816.1,1816.0,0.5412]
[1746292643116,11.6155255,1816.1,1815.7,4.067]
[1746292643117,1.10116,1815.8,1815.7,4.067]
[1746292643318,1.10134,1815.5,1815.4,1.10141]
[1746292643519,1.37644316,1815.5,1815.4,1.10141]
[1746292643822,7.4952,1815.7,1815.3,5.70993]
[1746292643823,1.37651316,1815.4,1815.3,5.70993]
[1746292644011,1.37651316,1815.4,1815.3,4.6085]
[1746292644523,1.74342931,1815.4,1815.3,0.5415]
[1746292644717,1.74342931,1815.4,1815.2,3.718]
[1746292644922,2.9399,1815.3,1815.2,3.718]
[1746292645123,1.6645,1815.3,1815.2,4.81953]
[1746292645723,1.2754,1815.6,1815.5,1.10134]
[1746292646325,1.3199,1815.7,1815.6,1.10128]
[1746292646522,1.3199,1815.7,1815.5,3.718]
[1746292646821,1.3199,1815.7,1815.5,4.81931]
[1746292647021,1.7602,1815.6,1815.5,4.81931]
[1746292648725,1.7602,1815.6,1815.5,4.81934]
[1746292649027,1.7602,1815.6,1815.5,3.718]
[1746292649028,3.13658316,1815.6,1815.5,3.718]
[1746292649324,3.13658316,1815.6,1815.3,11.08042]
[1746292649524,2.66965316,1815.5,1815.3,9.979]
[1746292649726,1.7602,1815.4,1815.3,9.979]
[1746292649922,2.03530316,1815.4,1815.1,3.7494]
[1746292650113,1.37663316,1815.2,1815.1,0.5416]
[1746292650520,4.23183316,1815.2,1815.1,0.5416]
[1746292650829,1.10164,1815.1,1814.8,8.37754]
[1746292651018,1.618,1815.0,1814.8,8.37754]
[1746292651214,1.89310316,1815.0,1814.8,10.9938]
[1746292651525,1.10171,1814.9,1814.8,8.3278]
[1746292652218,1.10171,1814.9,1814.8,4.6098]
[1746292652522,1.10171,1814.9,1814.8,0.5418]